[Event "Late-Titled-Tuesday-Blitz-April-16-2024"]
[Site "Chess.com"]
[Date "2024.04.16"]
[Round "6"]
[White "vladislavkovalev"]
[Black "marcodobrikov"]
[Result "1-0"]
[WhiteElo "2867"]
[BlackElo "2596"]
[TimeControl "180+1"]
[EndTime "15:05:56 PDT"]
[Termination "vladislavkovalev won by checkmate"]

1. e4 {[%clk 0:03:00.9]} 1... c5 {[%clk 0:02:58.7]} 2. Nf3 {[%clk 0:03:01.3]}
2... d6 {[%clk 0:02:59.3]} 3. Bb5+ {[%clk 0:03:01.5]} 3... Bd7 {[%clk
0:02:59.6]} 4. Bxd7+ {[%clk 0:03:01.5]} 4... Qxd7 {[%clk 0:03:00.5]} 5. c4
{[%clk 0:03:01.9]} 5... Nc6 {[%clk 0:03:00.9]} 6. Nc3 {[%clk 0:02:57.1]} 6... g6
{[%clk 0:02:55.5]} 7. d4 {[%clk 0:02:57.2]} 7... cxd4 {[%clk 0:02:55.9]} 8. Nxd4
{[%clk 0:02:58.1]} 8... Bg7 {[%clk 0:02:56.1]} 9. Be3 {[%clk 0:02:58.8]} 9...
Nf6 {[%clk 0:02:56]} 10. f3 {[%clk 0:02:59.2]} 10... O-O {[%clk 0:02:56.4]} 11.
Rc1 {[%clk 0:02:59.9]} 11... Rac8 {[%clk 0:02:56.4]} 12. b3 {[%clk 0:03:00.1]}
12... a6 {[%clk 0:02:46.8]} 13. Na4 {[%clk 0:02:42.4]} 13... Qd8 {[%clk
0:02:41.2]} 14. Nxc6 {[%clk 0:02:29.3]} 14... Rxc6 {[%clk 0:02:41.4]} 15. O-O
{[%clk 0:02:24.2]} 15... Nd7 {[%clk 0:02:38.7]} 16. Qe2 {[%clk 0:02:19.9]} 16...
Qb8 {[%clk 0:02:34.3]} 17. Nc3 {[%clk 0:02:01.1]} 17... Bxc3 {[%clk 0:02:30.5]}
18. Rxc3 {[%clk 0:02:02]} 18... b5 {[%clk 0:02:31.4]} 19. Rfc1 {[%clk
0:01:57.4]} 19... Rfc8 {[%clk 0:02:29.7]} 20. Bd4 {[%clk 0:01:46.6]} 20... e5
{[%clk 0:01:58.5]} 21. Be3 {[%clk 0:01:46.2]} 21... Nb6 {[%clk 0:01:53.6]} 22.
c5 {[%clk 0:01:42.5]} 22... dxc5 {[%clk 0:01:51.2]} 23. Rxc5 {[%clk 0:01:43.4]}
23... Rxc5 {[%clk 0:01:50.6]} 24. Rxc5 {[%clk 0:01:44.3]} 24... Rxc5 {[%clk
0:01:47.7]} 25. Bxc5 {[%clk 0:01:45.2]} 25... Nd7 {[%clk 0:01:47.4]} 26. Be3
{[%clk 0:01:45.5]} 26... Kg7 {[%clk 0:01:41.6]} 27. Qd2 {[%clk 0:01:44.8]} 27...
Qc7 {[%clk 0:01:41.8]} 28. Bh6+ {[%clk 0:01:44.6]} 28... Kf6 {[%clk 0:01:24.2]}
29. h4 {[%clk 0:01:43.5]} 29... Qc5+ {[%clk 0:01:21.9]} 30. Kh2 {[%clk
0:01:43.4]} 30... Ke6 {[%clk 0:01:21.2]} 31. Qa5 {[%clk 0:01:34.4]} 31... Qb6
{[%clk 0:01:21.6]} 32. Qc3 {[%clk 0:01:17]} 32... Qc5 {[%clk 0:01:20.2]} 33. Qd2
{[%clk 0:01:06.3]} 33... Qd6 {[%clk 0:01:18.8]} 34. Qg5 {[%clk 0:00:53.9]} 34...
f6 {[%clk 0:01:19]} 35. Qg4+ {[%clk 0:00:51.7]} 35... Kf7 {[%clk 0:01:16]} 36.
h5 {[%clk 0:00:44.4]} 36... Qe6 {[%clk 0:01:15.1]} 37. hxg6+ {[%clk 0:00:44.1]}
37... hxg6 {[%clk 0:01:14.1]} 38. Qh4 {[%clk 0:00:45]} 38... g5 {[%clk
0:01:02.1]} 39. Qh5+ {[%clk 0:00:45]} 39... Ke7 {[%clk 0:01:02.5]} 40. Kg3
{[%clk 0:00:17.1]} 40... Qf7 {[%clk 0:00:50.5]} 41. Qh3 {[%clk 0:00:16.9]} 41...
Qg6 {[%clk 0:00:43.9]} 42. Qh1 {[%clk 0:00:09.9]} 42... Nc5 {[%clk 0:00:41.9]}
43. Qg1 {[%clk 0:00:05.2]} 43... Nd7 {[%clk 0:00:25.6]} 44. Qh2 {[%clk
0:00:05.1]} 44... Kf7 {[%clk 0:00:22.6]} 45. Qh3 {[%clk 0:00:05.5]} 45... Nc5
{[%clk 0:00:20.4]} 46. Kh2 {[%clk 0:00:04.4]} 46... Ne6 {[%clk 0:00:20.2]} 47.
Kg1 {[%clk 0:00:03.9]} 47... Ke7 {[%clk 0:00:17.2]} 48. Kf2 {[%clk 0:00:02.1]}
48... Nf4 {[%clk 0:00:16.5]} 49. Qh2 {[%clk 0:00:02.2]} 49... Nh5 {[%clk
0:00:16]} 50. g4 {[%clk 0:00:02]} 50... Nf4 {[%clk 0:00:15.9]} 51. Kg3 {[%clk
0:00:02.7]} 51... Ne6 {[%clk 0:00:12.5]} 52. Qh1 {[%clk 0:00:02.1]} 52... Nc5
{[%clk 0:00:09.9]} 53. Qg1 {[%clk 0:00:01.6]} 53... Nd7 {[%clk 0:00:10.1]} 54.
Qh2 {[%clk 0:00:01.5]} 54... Qg8 {[%clk 0:00:06.2]} 55. Qh5 {[%clk 0:00:01.5]}
55... Qf7 {[%clk 0:00:06.5]} 56. Qh2 {[%clk 0:00:01.6]} 56... Qe6 {[%clk
0:00:07.2]} 57. Qh5 {[%clk 0:00:01.9]} 57... Qb6 {[%clk 0:00:06.2]} 58. Qg6
{[%clk 0:00:02]} 58... Qg1+ {[%clk 0:00:06.4]} 59. Kh3 {[%clk 0:00:02.7]} 59...
Qf2 {[%clk 0:00:04.9]} 60. Qg7+ {[%clk 0:00:02.6]} 60... Ke6 {[%clk 0:00:05]}
61. Qg8+ {[%clk 0:00:03.1]} 61... Kd6 {[%clk 0:00:05.6]} 62. Bf8+ {[%clk
0:00:03.8]} 62... Kc7 {[%clk 0:00:05.9]} 63. Be7 {[%clk 0:00:02.5]} 63... Qxf3+
{[%clk 0:00:06.5]} 64. Kh2 {[%clk 0:00:03.4]} 64... Qe2+ {[%clk 0:00:06.9]} 65.
Kg3 {[%clk 0:00:03.3]} 65... Qe3+ {[%clk 0:00:07.3]} 66. Kh2 {[%clk 0:00:03.5]}
66... Qf4+ {[%clk 0:00:07.4]} 67. Kh3 {[%clk 0:00:04]} 67... Qxe4 {[%clk
0:00:07.5]} 68. Qd8+ {[%clk 0:00:03.6]} 68... Kc6 {[%clk 0:00:06.2]} 69. Qc8+
{[%clk 0:00:04]} 69... Kb6 {[%clk 0:00:06.9]} 70. Qd8+ {[%clk 0:00:03.7]} 70...
Kb7 {[%clk 0:00:04.4]} 71. Qxd7+ {[%clk 0:00:04.3]} 71... Kb6 {[%clk 0:00:05]}
72. Bd8+ {[%clk 0:00:04.7]} 72... Kc5 {[%clk 0:00:04.4]} 73. Qe7+ {[%clk
0:00:05]} 73... Kc6 {[%clk 0:00:03.6]} 74. Qe6+ {[%clk 0:00:05]} 74... Kc5
{[%clk 0:00:03.7]} 75. Bb6+ {[%clk 0:00:04.3]} 75... Kb4 {[%clk 0:00:04.1]} 76.
Qd6+ {[%clk 0:00:04.6]} 76... Kc3 {[%clk 0:00:03.9]} 77. Qxf6 {[%clk 0:00:03.8]}
77... Kb2 {[%clk 0:00:04.1]} 78. Qf2+ {[%clk 0:00:03.6]} 78... Ka3 {[%clk
0:00:04.7]} 79. Be3 {[%clk 0:00:04.1]} 79... Qd3 {[%clk 0:00:04.7]} 80. Kg2
{[%clk 0:00:04]} 80... a5 {[%clk 0:00:05.1]} 81. Bxg5 {[%clk 0:00:04.2]} 81...
Qe4+ {[%clk 0:00:05.2]} 82. Kg3 {[%clk 0:00:04.5]} 82... Qd3+ {[%clk 0:00:05.6]}
83. Be3 {[%clk 0:00:05.3]} 83... e4 {[%clk 0:00:05.4]} 84. g5 {[%clk 0:00:05.8]}
84... Qd6+ {[%clk 0:00:05.6]} 85. Qf4 {[%clk 0:00:05.8]} 85... Qxf4+ {[%clk
0:00:06.1]} 86. Kxf4 {[%clk 0:00:05.9]} 86... Kxa2 {[%clk 0:00:07]} 87. g6
{[%clk 0:00:06.8]} 87... a4 {[%clk 0:00:07.6]} 88. bxa4 {[%clk 0:00:06.9]} 88...
b4 {[%clk 0:00:08]} 89. g7 {[%clk 0:00:07.8]} 89... b3 {[%clk 0:00:08.4]} 90.
Bd4 {[%clk 0:00:08.6]} 90... b2 {[%clk 0:00:09.2]} 91. Bxb2 {[%clk 0:00:08.9]}
91... Kb3 {[%clk 0:00:10.1]} 92. Ke3 {[%clk 0:00:09.7]} 92... Kc2 {[%clk
0:00:10.6]} 93. g8=Q {[%clk 0:00:10.6]} 93... Kb1 {[%clk 0:00:11.5]} 94. Qe6
{[%clk 0:00:10.5]} 94... Kc2 {[%clk 0:00:12.2]} 95. Qc4+ {[%clk 0:00:10.4]}
95... Kb1 {[%clk 0:00:12.9]} 96. Kd2 {[%clk 0:00:11]} 96... Kxb2 {[%clk
0:00:13.2]} 97. Qb4+ {[%clk 0:00:11.1]} 97... Ka2 {[%clk 0:00:13.7]} 98. Kc2
{[%clk 0:00:12]} 98... Ka1 {[%clk 0:00:14.2]} 99. Qb2# {[%clk 0:00:12.9]} 1-0

[Event "Late-Titled-Tuesday-Blitz-April-16-2024"]
[Site "Chess.com"]
[Date "2024.04.16"]
[Round "7"]
[White "simaopdias"]
[Black "SmirnovTimofey2000"]
[Result "1-0"]
[WhiteElo "2246"]
[BlackElo "1988"]
[TimeControl "180+1"]
[EndTime "15:10:17 PDT"]
[Termination "simaopdias won by resignation"]

1. e4 {[%clk 0:02:59.9]} 1... e5 {[%clk 0:02:59.9]} 2. Nf3 {[%clk 0:03:00.1]}
2... Nf6 {[%clk 0:02:59.9]} 3. Nc3 {[%clk 0:02:53.9]} 3... Bb4 {[%clk
0:02:59.2]} 4. Bc4 {[%clk 0:02:52.3]} 4... O-O {[%clk 0:02:58.3]} 5. d3 {[%clk
0:02:52.5]} 5... d5 {[%clk 0:02:57.7]} 6. exd5 {[%clk 0:02:53.4]} 6... Nxd5
{[%clk 0:02:55.2]} 7. O-O {[%clk 0:02:45.6]} 7... Nxc3 {[%clk 0:02:53]} 8. bxc3
{[%clk 0:02:45.4]} 8... Bxc3 {[%clk 0:02:53.9]} 9. Rb1 {[%clk 0:02:45.6]} 9...
Nc6 {[%clk 0:02:45.7]} 10. Ng5 {[%clk 0:02:41.9]} 10... h6 {[%clk 0:02:37.9]}
11. Ne4 {[%clk 0:02:35.1]} 11... Ba5 {[%clk 0:02:28.3]} 12. Qh5 {[%clk
0:02:27.4]} 12... Qe7 {[%clk 0:01:55.8]} 13. Bxh6 {[%clk 0:02:24.5]} 13... gxh6
{[%clk 0:01:51.3]} 14. Qxh6 {[%clk 0:02:24.4]} 14... Be6 {[%clk 0:01:39.2]} 15.
Nf6+ {[%clk 0:02:23.2]} 1-0

[Event "Late-Titled-Tuesday-Blitz-April-16-2024"]
[Site "Chess.com"]
[Date "2024.04.16"]
[Round "7"]
[White "carloseduar100"]
[Black "MaxLeto"]
[Result "0-1"]
[WhiteElo "2230"]
[BlackElo "2417"]
[TimeControl "180+1"]
[EndTime "15:10:25 PDT"]
[Termination "MaxLeto won by resignation"]

1. d4 {[%clk 0:02:53]} 1... h5 {[%clk 0:02:58.9]} 2. e4 {[%clk 0:02:48.3]} 2...
h4 {[%clk 0:02:59.8]} 3. c4 {[%clk 0:02:47.1]} 3... d6 {[%clk 0:03:00.7]} 4. f4
{[%clk 0:02:46.4]} 4... h3 {[%clk 0:03:01.6]} 5. Nxh3 {[%clk 0:02:45.2]} 5...
Bxh3 {[%clk 0:03:02.3]} 6. gxh3 {[%clk 0:02:45.8]} 6... e5 {[%clk 0:03:02.6]} 7.
dxe5 {[%clk 0:02:30.6]} 7... Qh4+ {[%clk 0:02:59.9]} 8. Ke2 {[%clk 0:02:26.9]}
8... dxe5 {[%clk 0:02:40]} 9. f5 {[%clk 0:02:14.3]} 9... Qxe4+ {[%clk
0:02:35.4]} 10. Kf2 {[%clk 0:02:14.6]} 10... Bc5+ {[%clk 0:02:29.4]} 11. Kg3
{[%clk 0:02:08.3]} 11... Ne7 {[%clk 0:02:10]} 0-1

[Event "Late-Titled-Tuesday-Blitz-April-16-2024"]
[Site "Chess.com"]
[Date "2024.04.16"]
[Round "7"]
[White "Godzillator"]
[Black "GaiozNigalidze"]
[Result "0-1"]
[WhiteElo "2360"]
[BlackElo "2674"]
[TimeControl "180+1"]
[EndTime "15:10:55 PDT"]
[Termination "GaiozNigalidze won by checkmate"]

1. c4 {[%clk 0:03:00.9]} 1... Nf6 {[%clk 0:02:59]} 2. Nc3 {[%clk 0:03:00.3]}
2... g6 {[%clk 0:02:58.8]} 3. d4 {[%clk 0:03:00.1]} 3... Bg7 {[%clk 0:02:59.2]}
4. e4 {[%clk 0:03:00.4]} 4... d6 {[%clk 0:02:59.8]} 5. Be2 {[%clk 0:03:00.8]}
5... O-O {[%clk 0:03:00.5]} 6. Bg5 {[%clk 0:03:00.9]} 6... Nfd7 {[%clk
0:03:01.2]} 7. Qd2 {[%clk 0:02:57.3]} 7... Nc6 {[%clk 0:03:01]} 8. d5 {[%clk
0:02:55.5]} 8... Nd4 {[%clk 0:03:01]} 9. Bd3 {[%clk 0:02:53.4]} 9... c5 {[%clk
0:02:57.3]} 10. Nge2 {[%clk 0:02:47.7]} 10... Ne5 {[%clk 0:02:54.7]} 11. Nxd4
{[%clk 0:02:45.8]} 11... cxd4 {[%clk 0:02:52.5]} 12. Be2 {[%clk 0:02:42]} 12...
dxc3 {[%clk 0:02:50.3]} 13. bxc3 {[%clk 0:02:36]} 13... b6 {[%clk 0:02:46.8]}
14. h4 {[%clk 0:02:34.9]} 14... h5 {[%clk 0:02:44.2]} 15. f3 {[%clk 0:02:31.7]}
15... f6 {[%clk 0:02:38.4]} 16. Bf4 {[%clk 0:02:20.6]} 16... f5 {[%clk
0:02:38.3]} 17. g4 {[%clk 0:02:10.4]} 17... fxg4 {[%clk 0:02:36.9]} 18. fxg4
{[%clk 0:02:10.1]} 18... Bxg4 {[%clk 0:02:36.5]} 19. Bxe5 {[%clk 0:02:04.1]}
19... Bxe5 {[%clk 0:02:32.4]} 20. Bxg4 {[%clk 0:02:03.8]} 20... hxg4 {[%clk
0:02:32.5]} 21. Qh6 {[%clk 0:01:55.5]} 21... Rf6 {[%clk 0:02:28.2]} 22. Ke2
{[%clk 0:01:53.7]} 22... Qc8 {[%clk 0:02:26.7]} 23. Kd3 {[%clk 0:01:52.5]} 23...
Rf3+ {[%clk 0:02:21.3]} 24. Kc2 {[%clk 0:01:51.9]} 24... Rxc3+ {[%clk
0:02:13.3]} 25. Kd2 {[%clk 0:01:52]} 25... Qxc4 {[%clk 0:02:08.4]} 26. Qxg6+
{[%clk 0:01:50.5]} 26... Bg7 {[%clk 0:02:08.9]} 27. h5 {[%clk 0:01:42]} 27...
Qd3+ {[%clk 0:02:05]} 28. Ke1 {[%clk 0:01:41.6]} 28... Qe3+ {[%clk 0:02:04.8]}
29. Kf1 {[%clk 0:01:41.5]} 29... Rf8+ {[%clk 0:02:05.2]} 30. Kg2 {[%clk
0:01:40.3]} 30... Rf2+ {[%clk 0:02:03.5]} 31. Kg1 {[%clk 0:01:39.8]} 31... Qg3#
{[%clk 0:02:03.2]} 0-1

[Event "Late-Titled-Tuesday-Blitz-April-16-2024"]
[Site "Chess.com"]
[Date "2024.04.16"]
[Round "7"]
[White "subham777"]
[Black "rajesh1464"]
[Result "1-0"]
[WhiteElo "2538"]
[BlackElo "2381"]
[TimeControl "180+1"]
[EndTime "15:11:09 PDT"]
[Termination "subham777 won by resignation"]

1. e4 {[%clk 0:03:00.9]} 1... c5 {[%clk 0:02:59.6]} 2. Nf3 {[%clk 0:02:59.9]}
2... d6 {[%clk 0:03:00]} 3. d4 {[%clk 0:02:59.8]} 3... cxd4 {[%clk 0:03:00.9]}
4. Qxd4 {[%clk 0:03:00.4]} 4... e5 {[%clk 0:02:55]} 5. Qd2 {[%clk 0:02:59.3]}
5... Bg4 {[%clk 0:02:47.5]} 6. Nc3 {[%clk 0:02:58.5]} 6... Bxf3 {[%clk
0:02:47.4]} 7. gxf3 {[%clk 0:02:58]} 7... Nf6 {[%clk 0:02:43.7]} 8. b3 {[%clk
0:02:57.6]} 8... g6 {[%clk 0:02:41.3]} 9. Bb2 {[%clk 0:02:56.3]} 9... h5 {[%clk
0:02:40.6]} 10. Nd5 {[%clk 0:02:50.8]} 10... Nc6 {[%clk 0:02:34.5]} 11. Bc4
{[%clk 0:02:32]} 11... Bh6 {[%clk 0:02:25.2]} 12. f4 {[%clk 0:02:27.1]} 12...
O-O {[%clk 0:02:14.6]} 13. O-O-O {[%clk 0:02:14.1]} 13... Rc8 {[%clk 0:01:52.6]}
14. Kb1 {[%clk 0:02:05]} 14... Nxd5 {[%clk 0:01:46.5]} 15. Qxd5 {[%clk
0:02:01.2]} 15... Bxf4 {[%clk 0:01:44.5]} 16. Qxd6 {[%clk 0:01:57.7]} 16... Qh4
{[%clk 0:01:44.1]} 17. Qxg6+ {[%clk 0:01:54.7]} 17... Kh8 {[%clk 0:01:42.7]} 18.
Bxf7 {[%clk 0:01:49.2]} 18... Ne7 {[%clk 0:01:33.2]} 19. Bxe5+ {[%clk
0:01:39.8]} 1-0

[Event "Late-Titled-Tuesday-Blitz-April-16-2024"]
[Site "Chess.com"]
[Date "2024.04.16"]
[Round "7"]
[White "CrushingKings"]
[Black "Licancabur"]
[Result "1-0"]
[WhiteElo "2592"]
[BlackElo "2446"]
[TimeControl "180+1"]
[EndTime "15:11:55 PDT"]
[Termination "CrushingKings won by resignation"]

1. Nf3 {[%clk 0:03:00.9]} 1... d5 {[%clk 0:02:59]} 2. g3 {[%clk 0:03:00.8]} 2...
Nf6 {[%clk 0:02:58.9]} 3. Bg2 {[%clk 0:03:01.4]} 3... c6 {[%clk 0:02:55]} 4. O-O
{[%clk 0:03:00.1]} 4... Bg4 {[%clk 0:02:53.8]} 5. h3 {[%clk 0:02:59.8]} 5... Bh5
{[%clk 0:02:53.8]} 6. c4 {[%clk 0:02:58.4]} 6... e6 {[%clk 0:02:53.3]} 7. cxd5
{[%clk 0:02:58.6]} 7... exd5 {[%clk 0:02:53.1]} 8. d4 {[%clk 0:02:58.3]} 8...
Nbd7 {[%clk 0:02:51.2]} 9. Ne5 {[%clk 0:02:58]} 9... Nxe5 {[%clk 0:02:42.9]} 10.
dxe5 {[%clk 0:02:58.1]} 10... Nd7 {[%clk 0:02:43.6]} 11. f4 {[%clk 0:02:55.8]}
11... Bc5+ {[%clk 0:02:34.1]} 12. Kh2 {[%clk 0:02:55.3]} 12... f5 {[%clk
0:02:29.9]} 13. Qc2 {[%clk 0:02:37.9]} 13... Qe7 {[%clk 0:02:06.2]} 14. Qxf5
{[%clk 0:02:27.8]} 14... Bxe2 {[%clk 0:01:54.9]} 15. Re1 {[%clk 0:02:27.3]}
15... Bh5 {[%clk 0:01:55.3]} 16. Qxh5+ {[%clk 0:02:26]} 16... g6 {[%clk
0:01:54.7]} 17. Qg5 {[%clk 0:02:20.2]} 17... Qxg5 {[%clk 0:01:50.4]} 18. fxg5
{[%clk 0:02:20]} 18... O-O {[%clk 0:01:49.1]} 19. e6 {[%clk 0:02:19.3]} 19...
Nb6 {[%clk 0:01:48.3]} 20. Bf4 {[%clk 0:02:18]} 20... Rae8 {[%clk 0:01:42.3]}
21. Nd2 {[%clk 0:02:16.4]} 21... Bd4 {[%clk 0:01:39.8]} 22. Rab1 {[%clk
0:02:06.8]} 22... Na4 {[%clk 0:01:36.6]} 23. Nf3 {[%clk 0:01:37.8]} 23... Bxb2
{[%clk 0:01:32.6]} 24. Bd6 {[%clk 0:01:38.3]} 24... Rf5 {[%clk 0:01:24.2]} 25.
g4 {[%clk 0:01:38.6]} 25... Rxf3 {[%clk 0:01:07]} 26. Bxf3 {[%clk 0:01:39.5]}
26... Bg7 {[%clk 0:01:01.4]} 27. Rxb7 {[%clk 0:01:38.7]} 1-0

[Event "Late-Titled-Tuesday-Blitz-April-16-2024"]
[Site "Chess.com"]
[Date "2024.04.16"]
[Round "7"]
[White "AradNazari"]
[Black "Indefatigable11"]
[Result "1-0"]
[WhiteElo "2721"]
[BlackElo "2401"]
[TimeControl "180+1"]
[EndTime "15:12:06 PDT"]
[Termination "AradNazari won by checkmate"]

1. e4 {[%clk 0:03:00.9]} 1... c5 {[%clk 0:02:58.1]} 2. Nf3 {[%clk 0:03:01.1]}
2... d6 {[%clk 0:02:58.1]} 3. Bb5+ {[%clk 0:03:00.8]} 3... Bd7 {[%clk
0:02:56.8]} 4. Bxd7+ {[%clk 0:03:01.3]} 4... Qxd7 {[%clk 0:02:57.3]} 5. O-O
{[%clk 0:03:01.8]} 5... Nf6 {[%clk 0:02:56.5]} 6. Re1 {[%clk 0:03:01.9]} 6...
Nc6 {[%clk 0:02:56.7]} 7. c3 {[%clk 0:03:02.5]} 7... e5 {[%clk 0:02:49.5]} 8. d4
{[%clk 0:03:00.9]} 8... cxd4 {[%clk 0:02:50.1]} 9. cxd4 {[%clk 0:03:01.8]} 9...
exd4 {[%clk 0:02:50.5]} 10. Nxd4 {[%clk 0:03:02.7]} 10... Be7 {[%clk 0:02:47.6]}
11. Nc3 {[%clk 0:03:01.2]} 11... O-O {[%clk 0:02:46.7]} 12. Nf5 {[%clk
0:03:00.1]} 12... Rfe8 {[%clk 0:02:42.1]} 13. Bg5 {[%clk 0:02:57.8]} 13... Rad8
{[%clk 0:02:10.8]} 14. Nxe7+ {[%clk 0:02:54.7]} 14... Qxe7 {[%clk 0:02:10.6]}
15. Nd5 {[%clk 0:02:53.9]} 15... Qe5 {[%clk 0:02:10.5]} 16. f4 {[%clk
0:02:16.1]} 16... Qxb2 {[%clk 0:02:05.9]} 17. Bxf6 {[%clk 0:02:16.3]} 17... gxf6
{[%clk 0:02:05.4]} 18. Rb1 {[%clk 0:02:16.9]} 18... Qxa2 {[%clk 0:01:52.5]} 19.
Nxf6+ {[%clk 0:02:14.9]} 19... Kg7 {[%clk 0:01:53.1]} 20. Qg4+ {[%clk
0:01:38.5]} 20... Kxf6 {[%clk 0:01:47.2]} 21. Qg5+ {[%clk 0:01:39]} 21... Ke6
{[%clk 0:01:44.5]} 22. Rxb7 {[%clk 0:01:39.6]} 22... Qa5 {[%clk 0:00:51.9]} 23.
Qh6+ {[%clk 0:01:30.9]} 23... f6 {[%clk 0:00:47.6]} 24. Qh3+ {[%clk 0:01:31.1]}
24... f5 {[%clk 0:00:46.4]} 25. Qh6# {[%clk 0:01:31.5]} 1-0

[Event "Late-Titled-Tuesday-Blitz-April-16-2024"]
[Site "Chess.com"]
[Date "2024.04.16"]
[Round "7"]
[White "zano2023"]
[Black "stasOR4ik"]
[Result "1-0"]
[WhiteElo "2192"]
[BlackElo "2415"]
[TimeControl "180+1"]
[EndTime "15:12:07 PDT"]
[Termination "zano2023 won by resignation"]

1. d4 {[%clk 0:03:00.9]} 1... Nf6 {[%clk 0:02:59.2]} 2. Nd2 {[%clk 0:03:00.4]}
2... c5 {[%clk 0:02:58.9]} 3. e3 {[%clk 0:03:00.2]} 3... cxd4 {[%clk 0:02:59]}
4. exd4 {[%clk 0:03:00.5]} 4... d5 {[%clk 0:02:59.5]} 5. Ngf3 {[%clk 0:03:01.1]}
5... Nc6 {[%clk 0:02:59.8]} 6. c3 {[%clk 0:02:59.9]} 6... Bg4 {[%clk 0:03:00]}
7. Qa4 {[%clk 0:02:59.1]} 7... e6 {[%clk 0:02:59]} 8. Ne5 {[%clk 0:02:58.1]}
8... Qc7 {[%clk 0:02:51.5]} 9. Bb5 {[%clk 0:02:58]} 9... Rc8 {[%clk 0:02:37.4]}
10. Qxa7 {[%clk 0:02:56.9]} 10... Bd6 {[%clk 0:02:33.9]} 11. Nxc6 {[%clk
0:02:52.6]} 11... bxc6 {[%clk 0:02:33.4]} 12. Qxc7 {[%clk 0:02:53.2]} 12... Rxc7
{[%clk 0:02:34]} 13. Bd3 {[%clk 0:02:53.5]} 13... e5 {[%clk 0:02:31.9]} 14. dxe5
{[%clk 0:02:50.7]} 14... Bxe5 {[%clk 0:02:32.8]} 15. O-O {[%clk 0:02:48.1]}
15... O-O {[%clk 0:02:32.2]} 16. Re1 {[%clk 0:02:43.1]} 16... Re8 {[%clk
0:02:30.8]} 17. Rf1 {[%clk 0:02:28.5]} 17... c5 {[%clk 0:02:22.4]} 18. h3 {[%clk
0:02:28.8]} 18... Bh5 {[%clk 0:02:20.5]} 19. g4 {[%clk 0:02:29]} 19... Bg6
{[%clk 0:02:17.5]} 20. Bxg6 {[%clk 0:02:29]} 20... hxg6 {[%clk 0:02:18.3]} 21.
Nf3 {[%clk 0:02:28.4]} 21... d4 {[%clk 0:02:13.9]} 22. Nxe5 {[%clk 0:02:27.5]}
22... Rxe5 {[%clk 0:02:13.5]} 23. Bf4 {[%clk 0:02:27.5]} 23... Rce7 {[%clk
0:02:11.9]} 24. Bxe5 {[%clk 0:02:27.2]} 24... Rxe5 {[%clk 0:02:12.8]} 25. cxd4
{[%clk 0:02:26.9]} 25... cxd4 {[%clk 0:02:12.9]} 26. Rfe1 {[%clk 0:02:26.8]}
26... Rb5 {[%clk 0:02:11.7]} 27. b3 {[%clk 0:02:26.1]} 27... Nd5 {[%clk
0:02:03.2]} 28. Rad1 {[%clk 0:02:24.2]} 28... Nc3 {[%clk 0:02:01.4]} 29. Rd2
{[%clk 0:02:20.7]} 29... Ra5 {[%clk 0:01:47.4]} 30. a4 {[%clk 0:02:18.7]} 30...
Rd5 {[%clk 0:01:46.4]} 31. Re8+ {[%clk 0:02:12.2]} 31... Kh7 {[%clk 0:01:46.5]}
32. Rc8 {[%clk 0:02:03.1]} 32... Ne4 {[%clk 0:01:41.8]} 33. Rd3 {[%clk
0:02:03.5]} 33... Nc5 {[%clk 0:01:37.9]} 34. Rxc5 {[%clk 0:01:54.9]} 34... Rxc5
{[%clk 0:01:38.8]} 35. Rxd4 {[%clk 0:01:55.3]} 35... Kh6 {[%clk 0:01:38.7]} 36.
b4 {[%clk 0:01:55]} 36... Rc3 {[%clk 0:01:39.1]} 37. Kg2 {[%clk 0:01:54.6]}
37... Kg5 {[%clk 0:01:38]} 38. b5 {[%clk 0:01:45.6]} 38... Kh4 {[%clk
0:01:37.5]} 39. Rb4 {[%clk 0:01:45.2]} 39... g5 {[%clk 0:01:15.8]} 40. b6 {[%clk
0:01:43.4]} 40... Rb3 {[%clk 0:01:13.1]} 41. Rxb3 {[%clk 0:01:41]} 1-0

[Event "Late-Titled-Tuesday-Blitz-April-16-2024"]
[Site "Chess.com"]
[Date "2024.04.16"]
[Round "7"]
[White "Caterpiller35"]
[Black "egnfanclub"]
[Result "1-0"]
[WhiteElo "2491"]
[BlackElo "2374"]
[TimeControl "180+1"]
[EndTime "15:12:31 PDT"]
[Termination "Caterpiller35 won by resignation"]

1. d4 {[%clk 0:03:00]} 1... d5 {[%clk 0:02:59.4]} 2. Bf4 {[%clk 0:02:59.7]} 2...
Nf6 {[%clk 0:02:59.2]} 3. e3 {[%clk 0:02:58.7]} 3... Bf5 {[%clk 0:02:58.9]} 4.
c4 {[%clk 0:02:58.7]} 4... c6 {[%clk 0:02:51.5]} 5. Nc3 {[%clk 0:02:58.7]} 5...
Nbd7 {[%clk 0:02:42.3]} 6. Qb3 {[%clk 0:02:57.5]} 6... Qb6 {[%clk 0:02:39.5]} 7.
Nf3 {[%clk 0:02:56.7]} 7... dxc4 {[%clk 0:02:33.8]} 8. Bxc4 {[%clk 0:02:56.4]}
8... e6 {[%clk 0:02:33.4]} 9. O-O {[%clk 0:02:56]} 9... Nd5 {[%clk 0:02:23.3]}
10. Bg3 {[%clk 0:02:54.2]} 10... Nxc3 {[%clk 0:02:17.1]} 11. Qxc3 {[%clk
0:02:47.6]} 11... Bb4 {[%clk 0:02:15.1]} 12. Qc1 {[%clk 0:02:41.9]} 12... O-O
{[%clk 0:02:14.9]} 13. a3 {[%clk 0:02:42]} 13... Be7 {[%clk 0:02:14.4]} 14. Re1
{[%clk 0:02:32.9]} 14... c5 {[%clk 0:02:14.4]} 15. e4 {[%clk 0:02:30.3]} 15...
Bg6 {[%clk 0:02:09.3]} 16. d5 {[%clk 0:02:30.3]} 16... exd5 {[%clk 0:02:02.9]}
17. exd5 {[%clk 0:02:26.6]} 17... Bf6 {[%clk 0:02:02.5]} 18. Ne5 {[%clk
0:02:15.1]} 18... Nxe5 {[%clk 0:01:48.5]} 19. Bxe5 {[%clk 0:02:16]} 19... Rfe8
{[%clk 0:01:41.6]} 20. Qc3 {[%clk 0:02:13]} 20... Bxe5 {[%clk 0:01:34.1]} 21.
Rxe5 {[%clk 0:02:12.5]} 21... f6 {[%clk 0:01:23.3]} 22. Rxe8+ {[%clk 0:02:05.9]}
22... Rxe8 {[%clk 0:01:21.6]} 23. d6+ {[%clk 0:02:06]} 23... Kf8 {[%clk
0:01:08.1]} 24. Rd1 {[%clk 0:01:59.2]} 24... Rd8 {[%clk 0:00:43.9]} 25. Qd2
{[%clk 0:01:50.3]} 25... a6 {[%clk 0:00:32.7]} 26. Qd5 {[%clk 0:01:46.1]} 1-0